[Event "13th All African Rapid-ch Men 2024"]
[Site "Accra"]
[Date "2024.03.10"]
[Round "6.7"]
[White "Pedro Manuel Envo Engonga Avom"]
[Black "KIGIGHA, Bomo Lovet"]
[Result "*"]
[ECO "B23"]
[WhiteElo "1702"]
[BlackElo "2231"]
[Annotator "TA"]
[PlyCount "71"]
[EventDate "2024.03.07"]
[EventType "rapid"]
[EventCountry "GHA"]
[SourceTitle "playchess.com"]
[Source "ChessBase"]
[SourceQuality "1"]
[TimeControl "900+10"]

{[%evp 9,71,0,0,-44,-38,-39,-45,-39,-58,-51,-22,-112,-114,-116,-112,-413,61,-32,0,0,0,-42,0,0,0,0,0,0,25,30,38,21,29,8,50,-94,-104,-82,-11,-2,-13,-193,-180,-175,-185,-659,-185,-187,-187,-334,-48,-45,-20,-147,-8,-45,0,0,-21,-320,-322,-320,-255,-279]} 1. e4 {[%emt 0:00:01]} c5 {[%emt 0:00:01]} 2. Nc3 {[%emt 0:00:02]} a6 {[%emt 0:00:02]} 3. d4 {[%emt 0:00:02]} cxd4 {[%emt 0:00:02]} 4. Qxd4 {[%emt 0:00:01]} Nc6 {[%emt 0:00:11]} 5. Qd2 {[%emt 0:00:01]} Nf6 {[%emt 0:00:02]} 6. b3 {[%emt 0:00:03]} e6 {[%emt 0:00:02]} 7. Bb2 {[%emt 0:00:12]} Bb4 {[%emt 0:00:03]} 8. f3 {[%emt 0:00:03] Schwarz steht etwas besser.} d5 {[%emt 0:00:12]} 9. exd5 {[%emt 0:00:08]} Nxd5 {[%emt 0:00:02] Und ...Qh4+ würde nun gewinnen.} 10. O-O-O {[%emt 0:00:06] [#]} (10. Nge2 $11 {bleibt in der Remisbreite.}) 10... Qa5 $1 $17 {[%emt 0:00:18]} 11. Nge2 {[%emt 0:00:26][%cal Oa2a3]} O-O {[%emt 0:00:13]} 12. Kb1 $2 {[%emt 0:00:10][%mdl 8192]} (12. a3 $17 Nxc3 (12... Bxa3 13. Nxd5 Qxd2+ 14. Rxd2 $15) 13. Nxc3 Bxa3 14. Na4) 12... Bd7 $2 {[%emt 0:00:26]} ({Günstiger ist} 12... Rd8 $19 {Weiss muss nun ...Nxc3+ beachten.} 13. Qc1 Nxc3+ (13... Bxc3 $2 14. Rxd5 exd5 15. Bxc3 $19) 14. Nxc3 Rxd1 (14... Bxc3 $2 15. Rxd8+ Nxd8 16. Bxc3 $19) 15. Qxd1 (15. Nxd1 $2 Bd2 $19) 15... Bxc3 16. Bxc3 Qxc3) 13. Qd3 {[%emt 0:00:51]} (13. a3 $1 $14 Bxc3 (13... Bxa3 $2 14. Nxd5 Bxb2 15. Qxa5 $18) 14. Nxc3 Nxc3+ 15. Bxc3 (15. Qxc3 Qxc3 16. Bxc3 Rfd8 $16) 15... Qxa3 16. Qg5 (16. Qxd7 $2 Rad8 $19)) 13... Ne5 {[%emt 0:15:46]} (13... Nc7 $5) 14. Qd4 {[%emt 0:00:33][%cal Rc3d5] Und jetzt Nxd5! wäre schön.} Nc6 {[%emt 0:00:00][%cal Be5c6,Bc6e7,Be7g6][%mdl 32]} 15. Qd3 {[%emt 0:00:18][%cal Rc3d5]} Nxc3+ {[%emt 0:00:00]} (15... Nc7 $5) 16. Nxc3 {[%emt 0:00:14]} Rfd8 {[%emt 0:00:00]} 17. Qe3 {[%emt 0:00:51]} Ne7 {[%emt 0:00:00]} 18. Bd3 {[%emt 0:00:45] Lässt Nf5 nicht zu} Rac8 {[%emt 0:00:00]} 19. Ne4 {[%emt 0:01:19] c3 wäre nun fies.} f5 {[%emt 0:00:00] [#]} 20. Qg5 $1 {[%emt 0:00:46][%csl Gb2][%cal Rg5g7]} Ng6 $1 {[%emt 0:00:00]} 21. Ng3 {[%emt 0:01:44]} Bc3 {[%emt 0:00:00]} 22. h4 {[%emt 0:00:19]} (22. Bxc3 $1 $14 {bleibt weiter vorne.} Rxc3 23. h4) 22... Bxb2 {[%emt 0:00:00]} 23. Kxb2 {[%emt 0:00:02]} Qc3+ {[%emt 0:00:00]} (23... Bb5 $17 24. c4 Be8) 24. Kb1 $11 {[%emt 0:00:07]} Bb5 {[%emt 0:00:00] Gegen Bc4 gerichtet.} 25. Bxf5 {[%emt 0:00:20]} Rxd1+ $19 {[%emt 0:00:00]} 26. Rxd1 {[%emt 0:10:06]} exf5 $40 {[%emt 0:00:00][%mdl 128] Schwarz hat starken Angriff.} 27. Qxf5 {[%emt 0:00:10]} (27. Rd8+ Rxd8 28. Qxd8+ Nf8 29. Qd5+ Kh8 30. Qxf5 Qe1+ 31. Kb2) 27... Rf8 $2 {[%emt 0:00:00]} (27... Ne5 28. Rd5 Bd3 29. Qxc8+ (29. Qe6+ $2 Kf8 $19) 29... Qxc8 30. cxd3 Nc6 (30... Qc3 $2 31. Ne4 $19)) 28. Qd5+ {[%emt 0:00:00]} Kh8 {[%emt 0:00:00]} 29. Qxb7 {[%emt 0:00:30] [#]} (29. Ne4 $142 Qc7 30. Ng5) 29... Qe5 $2 {[%emt 0:00:00]} ({Nicht} 29... Nxh4 30. Ne4 Qc8 31. Qa7 $17) ({Vorzuziehen ist} 29... Rc8 $1 $19 30. Qd5 Qxc2+ (30... Nxh4 31. Rd2 $17) 31. Ka1 h6 (31... Qxg2 $2 32. Qd8+ Nf8 33. Qxc8 $18)) 30. Ne4 $15 {[%emt 0:00:00]} Nxh4 {[%emt 0:00:00]} 31. Nd6 {[%emt 0:00:00]} (31. a4 $11 Be2 32. Rd7) 31... Kg8 {[%emt 0:00:00]} (31... Nxg2 32. Nf7+ Rxf7 33. Qxf7 $11) (31... Qe2 $17 32. Rd4 Ng6 (32... Nxg2 33. Nf7+ Kg8 34. Nh6+ Kh8 35. Nf7+ Kg8 36. Nh6+ Kh8 37. Nf7+ $11)) 32. a4 {[%emt 0:00:00]} Be2 {[%emt 0:00:00]} 33. Rd5 {[%emt 0:00:00]} Qe6 {[%emt 0:00:00]} 34. Nc4 $2 {[%emt 0:00:50][%mdl 8192]} (34. Ne4 $1 $11) 34... Bxc4 $19 {[%emt 0:00:06]} ({Schlechter ist} 34... Nxg2 35. Re5 Bxf3 36. Qxf3 Rxf3 37. Rxe6 $11) 35. bxc4 {[%emt 0:00:01]} Nf5 {[%emt 0:00:23]} 36. Ka2 {[%emt 0:00:38] Gewichteter Fehlerwert: Weiß=0.73/Schwarz=0.63.  Verlustzug:     	Weiß=3     	---        Gewinn verpasst:   	---       	Schwarz=2     Fehler:       	Weiß=6     	Schwarz=3     Ungenau:       	Weiß=1     	Schwarz=3     OK:         	Weiß=10    	Schwarz=9     Bester:       	Weiß=3     	Schwarz=2     Stark:        	---       	Schwarz=2} *

[Event "13th All African Rapid-ch Men 2024"]
[Site "Accra"]
[Date "2024.03.10"]
[Round "6.8"]
[White "Levitan, Caleb Levi"]
[Black "Frempong-Smart Daniel"]
[Result "1-0"]
[ECO "B03"]
[WhiteElo "2235"]
[BlackElo "1877"]
[Annotator "TA"]
[PlyCount "108"]
[EventDate "2024.03.07"]
[EventType "rapid"]
[EventCountry "GHA"]
[SourceTitle "playchess.com"]
[Source "ChessBase"]
[SourceQuality "1"]
[TimeControl "900+10"]

{[%evp 16,108,35,36,99,89,73,63,114,71,62,39,40,31,88,49,91,82,102,59,51,62,54,11,56,8,81,77,84,81,86,78,98,37,105,104,109,98,97,83,83,84,85,86,80,99,94,83,97,54,67,60,52,58,70,66,131,74,72,66,610,825,816,812,773,739,4918,4847,4072,3945,1385,1202,6003,5945,4934,4926,11330,12168,29949,6027,29962,29948,29972,29973,29977,5165,29976,29977,29976,29974,29988,29989,29989,29990,29993]} 1. e4 {[%emt 0:00:02][%cal Be2e4,Be4e5][%mdl 32]} Nf6 {[%emt 0:00:19]} 2. e5 {[%emt 0:00:01]} Nd5 {[%emt 0:00:05]} 3. d4 {[%emt 0:00:02]} d6 {[%emt 0:00:02]} 4. c4 {[%emt 0:00:02]} Nb6 {[%emt 0:00:03]} 5. exd6 {[%emt 0:00:02]} cxd6 {[%emt 0:00:02]} 6. Nc3 {[%emt 0:00:03]} g6 {[%emt 0:00:02]} 7. Be3 {[%emt 0:00:12]} Bg7 {[%emt 0:00:02]} 8. Rc1 {[%emt 0:00:06]} O-O {[%emt 0:00:15]} 9. b3 {[%emt 0:00:08]} d5 {[%emt 0:00:40]} (9... e5 $14) 10. c5 $16 {[%emt 0:00:05]} N6d7 {[%emt 0:00:04][%cal Od7c5]} 11. Nxd5 {[%emt 0:00:26] White is more active.} e5 {[%emt 0:01:56]} (11... e6 $14 12. Nc3 Nc6) 12. dxe5 {[%emt 0:02:27]} Nxe5 {[%emt 0:00:06]} 13. Be2 {[%emt 0:00:09]} Nbc6 {[%emt 0:01:29]} 14. Nf3 {[%emt 0:00:50][%cal Bg1f3,Bf3d2,Bd2c4][%mdl 32]} Ng4 {[%emt 0:03:22]} ({Black should play} 14... Qa5+ $14 15. Qd2 Qxd2+ 16. Nxd2 (16. Bxd2 Rd8 $14) 16... Rd8) 15. O-O {[%emt 0:00:43]} Nxe3 {[%emt 0:00:08]} 16. Nxe3 {[%emt 0:00:11]} Qa5 {[%emt 0:00:09]} 17. Qd2 {[%emt 0:00:57]} Qxd2 {[%emt 0:01:34]} 18. Nxd2 {[%emt 0:00:02]} Rd8 {[%emt 0:00:09]} 19. Ndc4 {[%emt 0:00:32]} Be6 {[%emt 0:00:02]} 20. Bf3 {[%emt 0:02:31]} (20. Nd6 $14 {was preferrable.}) 20... Rab8 {[%emt 0:01:19] [#]} (20... Nd4 $11 {keeps the balance.}) 21. Bxc6 $1 {[%emt 0:01:34]} bxc6 {[%emt 0:00:03]} 22. Rfd1 {[%emt 0:00:31]} Rxd1+ {[%emt 0:01:25]} 23. Rxd1 {[%emt 0:00:38]} Rb5 {[%emt 0:00:10][%cal Og7h6]} 24. Rd8+ {[%emt 0:00:49]} Bf8 {[%emt 0:00:03][%cal Og8g7]} 25. Ra8 {[%emt 0:00:30]} Kg7 {[%emt 0:00:11]} 26. Rxa7 {[%emt 0:00:47]} Bxc5 {[%emt 0:00:05]} 27. Ra6 {[%emt 0:02:09]} Bxe3 {[%emt 0:01:03]} 28. Nxe3 {[%emt 0:00:11][%mdl 4096] Endgame. KRB-KRN} Rc5 {[%emt 0:00:02] [#] And now ...Rc1+ would win.} 29. Kf1 {[%emt 0:00:10]} Rc1+ {[%emt 0:00:03]} 30. Ke2 {[%emt 0:00:03]} Ra1 {[%emt 0:00:02]} 31. Ra3 {[%emt 0:01:14]} ({Reject} 31. Rxc6 $6 Rxa2+ 32. Kf3 Bxb3 $11) 31... h5 {[%emt 0:01:58]} 32. g3 {[%emt 0:01:14]} g5 {[%emt 0:00:10]} 33. h4 {[%emt 0:00:42]} gxh4 {[%emt 0:00:14]} 34. gxh4 {[%emt 0:00:01]} Rh1 {[%emt 0:00:24]} 35. Ra4 {[%emt 0:00:09]} Ra1 {[%emt 0:00:49]} ({Better is} 35... Kf6 $14) 36. Kf3 {[%emt 0:00:23]} (36. Nc2 $142 Rb1 37. Nb4) 36... Kf6 {[%emt 0:00:14]} 37. Ra5 {[%emt 0:00:16]} Bxb3 $2 {[%emt 0:00:25][%mdl 8192] This move loses the game for Black.} (37... Ke7 $14) 38. Rf5+ $18 {[%emt 0:00:02]} ({Stronger than} 38. Rxh5 Ba4 $11) 38... Ke6 {[%emt 0:00:34]} 39. axb3 {[%emt 0:00:02] KRN-KR} Ra3 {[%emt 0:00:02]} 40. Rc5 {[%emt 0:00:23]} Rxb3 {[%emt 0:00:08]} 41. Rxc6+ {[%emt 0:00:02]} Ke7 {[%emt 0:00:16]} 42. Rc5 {[%emt 0:00:01]} Ke6 {[%emt 0:00:17]} 43. Rxh5 {[%emt 0:00:04]} f6 {[%emt 0:00:04][%cal Bf7f6,Bf6f5][%mdl 32]} 44. Ra5 {[%emt 0:00:18]} Rb4 {[%emt 0:00:12]} 45. h5 {[%emt 0:00:15]} Rh4 {[%emt 0:00:11]} 46. Kg3 {[%emt 0:00:19]} Rh1 {[%emt 0:00:07]} 47. Ng2 {[%emt 0:00:10] Threatening mate with Nf4+.} f5 {[%emt 0:00:17]} 48. Nf4+ {[%emt 0:00:04]} Kf6 {[%emt 0:00:02]} 49. Ra6+ {[%emt 0:00:04]} Ke5 {[%emt 0:02:01]} 50. Re6+ {[%emt 0:00:08]} Kd4 {[%emt 0:00:06]} 51. h6 {[%emt 0:00:02] White mates.} Rg1+ {[%emt 0:00:26]} 52. Ng2 {[%emt 0:00:23]} Kd5 {[%emt 0:00:41]} 53. Re1 {[%emt 0:00:51]} f4+ {[%emt 0:00:07]} 54. Kf3 {[%emt 0:00:03]} Kd4 {[%emt 0:01:27] Weighted Error Value: White=0.16 (very precise) /Black=0.65.  Loses game:     	---       	Black=1      Mistake:       	White=2     	Black=4      Inaccurate:     	White=5     	Black=3      OK:         	White=4     	Black=10     Best:        	White=8     	Black=3      Strong:       	White=1     	---} 1-0

[Event "13th All African Rapid-ch Men 2024"]
[Site "Accra"]
[Date "2024.03.10"]
[Round "6.9"]
[White "Akpa Prince"]
[Black "Pereira, Sergio Murilo de Ara"]
[Result "0-1"]
[ECO "B01"]
[WhiteElo "1845"]
[BlackElo "2115"]
[Annotator "RC"]
[PlyCount "118"]
[EventDate "2024.03.07"]
[EventType "rapid"]
[EventCountry "GHA"]
[SourceTitle "playchess.com"]
[Source "ChessBase"]
[SourceQuality "1"]
[TimeControl "900+10"]

1. e4 {[%emt 0:00:04]} d5 {[%emt 0:00:06]} 2. exd5 {[%emt 0:00:05]} Nf6 {[%emt 0:00:02]} 3. d4 {[%emt 0:00:04]} Bg4 {[%emt 0:00:01]} 4. Nf3 {[%emt 0:00:17]} Qxd5 {[%emt 0:00:02]} 5. Be2 {[%emt 0:00:10]} Nc6 {[%emt 0:15:49]} 6. c4 {[%emt 0:00:07]} Qf5 {[%emt 0:00:00]} 7. d5 {[%emt 0:00:21]} O-O-O {[%emt 0:00:00]} 8. Qa4 {[%emt 0:00:39]} Bxf3 {[%emt 0:00:00]} 9. gxf3 {[%emt 0:02:04]} Nd4 {[%emt 0:00:00]} 10. Qxa7 {[%emt 0:00:38]} Nc2+ {[%emt 0:00:00]} 11. Kf1 {[%emt 0:00:02]} Qh3+ {[%emt 0:00:00]} 12. Kg1 {[%emt 0:12:39]} Ne1 {[%emt 0:00:00]} 13. Qa8+ {[%emt 0:00:00]} Kd7 {[%emt 0:00:00]} 14. Qa4+ {[%emt 0:00:00]} c6 {[%emt 0:00:00]} 15. dxc6+ {[%emt 0:00:00]} bxc6 {[%emt 0:00:00]} 16. Qd1+ {[%emt 0:00:00]} Ke8 {[%emt 0:00:00]} 17. Qxe1 {[%emt 0:00:00]} Nh5 {[%emt 0:00:00]} 18. Nc3 {[%emt 0:00:00]} f5 {[%emt 0:00:00]} 19. f4 {[%emt 0:00:00]} Rd6 {[%emt 0:00:00]} 20. Bxh5+ {[%emt 0:00:00]} Qxh5 {[%emt 0:00:00]} 21. Ne2 {[%emt 0:00:00]} Qg4+ {[%emt 0:00:00]} 22. Kf1 {[%emt 0:00:00]} Qh3+ {[%emt 0:00:00]} 23. Kg1 {[%emt 0:00:00]} Qg4+ {[%emt 0:00:00]} 24. Ng3 {[%emt 0:00:00]} Rd1 {[%emt 0:00:00]} 25. Qxd1 {[%emt 0:00:00]} Qxd1+ {[%emt 0:00:00]} 26. Kg2 {[%emt 0:00:00]} Qc2 {[%emt 0:00:00]} 27. Be3 {[%emt 0:00:00]} Qxc4 {[%emt 0:00:00]} 28. Rhc1 {[%emt 0:00:00]} Qd5+ {[%emt 0:00:00]} 29. f3 {[%emt 0:00:00]} Qd3 {[%emt 0:00:00]} 30. Bf2 {[%emt 0:00:00]} h5 {[%emt 0:00:00]} 31. h4 {[%emt 0:00:00]} Rh6 {[%emt 0:00:00]} 32. a4 {[%emt 0:00:00]} e5 {[%emt 0:00:00]} 33. fxe5 {[%emt 0:00:00]} f4 {[%emt 0:00:00]} 34. Ne4 {[%emt 0:00:00]} Rg6+ {[%emt 0:00:00]} 35. Ng5 {[%emt 0:00:00]} Be7 {[%emt 0:00:00]} 36. Rc3 {[%emt 0:00:00]} Qd2 {[%emt 0:00:00]} 37. a5 {[%emt 0:00:00]} Bxg5 {[%emt 0:00:00]} 38. hxg5 {[%emt 0:00:00]} Qxb2 {[%emt 0:00:51]} 39. Rac1 {[%emt 0:00:00]} Rxg5+ {[%emt 0:00:15]} 40. Kf1 {[%emt 0:00:00]} Qb5+ {[%emt 0:00:04]} 41. Rc4 {[%emt 0:00:00]} Rxe5 {[%emt 0:00:43]} 42. Kg2 {[%emt 0:00:00]} Rg5+ {[%emt 0:00:11]} 43. Kh1 {[%emt 0:00:00]} Rg6 {[%emt 0:01:15]} 44. Rc5 {[%emt 0:00:11]} Qb2 {[%emt 0:00:29]} 45. R1c2 {[%emt 0:00:06]} Qb1+ {[%emt 0:00:09]} 46. Rc1 {[%emt 0:00:18]} Qd3 {[%emt 0:00:03]} 47. R5c3 {[%emt 0:00:16]} Qd2 {[%emt 0:00:02]} 48. R3c2 {[%emt 0:00:16]} Qd5 {[%emt 0:00:06]} 49. Rc3 {[%emt 0:00:41]} Qxa5 {[%emt 0:00:12]} 50. Rc4 {[%emt 0:00:35]} Qd2 {[%emt 0:00:25]} 51. R4c2 {[%emt 0:00:34]} Qd5 {[%emt 0:00:03]} 52. Rc3 {[%emt 0:00:10]} Kf7 {[%emt 0:00:12]} 53. Rg1 {[%emt 0:00:39]} Rxg1+ {[%emt 0:01:25]} 54. Kxg1 {[%emt 0:00:13]} g6 {[%emt 0:00:16]} 55. Rc5 {[%emt 0:00:11]} Qxf3 {[%emt 0:00:03]} 56. Rc1 {[%emt 0:00:25]} h4 {[%emt 0:00:03]} 57. Bxh4 {[%emt 0:02:55]} Qg4+ 58. Kf1 {[%emt 0:00:00]} Qxh4 {[%emt 0:00:14]} 59. Rxc6 {[%emt 0:00:20]} Qh1+ {[%emt 0:00:01]} 0-1

[Event "13th All African Rapid-ch Men 2024"]
[Site "Accra"]
[Date "2024.03.10"]
[Round "6.10"]
[White "Fomevor, Cephas Clinton"]
[Black "Ntamatungiro, Wilfried"]
[Result "0-1"]
[ECO "D36"]
[WhiteElo "1887"]
[BlackElo "1905"]
[Annotator "RC"]
[PlyCount "88"]
[EventDate "2024.03.07"]
[EventType "rapid"]
[EventCountry "GHA"]
[SourceTitle "playchess.com"]
[Source "ChessBase"]
[SourceQuality "1"]
[TimeControl "900+10"]

1. d4 {[%emt 0:00:02]} d5 {[%emt 0:00:03]} 2. c4 {[%emt 0:00:02]} c6 {[%emt 0:00:02]} 3. Nc3 {[%emt 0:00:01]} Nf6 {[%emt 0:00:02]} 4. Nf3 {[%emt 0:00:02]} e6 {[%emt 0:00:03]} 5. cxd5 {[%emt 0:00:02]} exd5 {[%emt 0:00:03]} 6. Bg5 {[%emt 0:00:02]} Be7 {[%emt 0:00:04]} 7. Qc2 {[%emt 0:00:02]} Bg4 {[%emt 0:00:08]} 8. e3 {[%emt 0:00:02]} Nbd7 {[%emt 0:00:11]} 9. Bd3 {[%emt 0:00:03]} O-O {[%emt 0:00:11]} 10. a3 {[%emt 0:00:16]} Rc8 {[%emt 0:00:09]} 11. O-O {[%emt 0:00:15]} Bxf3 {[%emt 0:00:20]} 12. gxf3 {[%emt 0:00:02]} g6 {[%emt 0:00:13]} 13. b4 {[%emt 0:00:40]} Nh5 {[%emt 0:00:29]} 14. Bxe7 {[%emt 0:00:06]} Qxe7 {[%emt 0:00:03]} 15. Ne2 {[%emt 0:00:53]} Qf6 {[%emt 0:01:25]} 16. Kg2 {[%emt 0:01:22]} Qg5+ {[%emt 0:00:16]} 17. Ng3 {[%emt 0:00:05]} f5 {[%emt 0:00:16]} 18. f4 {[%emt 0:00:31]} Qh6 {[%emt 0:00:11]} 19. Nxh5 {[%emt 0:00:44]} Qxh5 {[%emt 0:00:05]} 20. Be2 {[%emt 0:00:20]} Qh4 {[%emt 0:00:12]} 21. Bf3 {[%emt 0:00:46]} Nb6 {[%emt 0:00:20]} 22. Kh1 {[%emt 0:00:46]} Nc4 {[%emt 0:00:22]} 23. Rg1 {[%emt 0:00:41]} Kh8 {[%emt 0:00:09]} 24. Rg3 {[%emt 0:02:12]} Rce8 {[%emt 0:01:11]} 25. b5 {[%emt 0:01:31]} Re7 {[%emt 0:01:07]} 26. bxc6 {[%emt 0:00:37]} bxc6 {[%emt 0:00:40]} 27. Be2 {[%emt 0:00:31]} Nd6 {[%emt 0:00:09]} 28. Bf3 {[%emt 0:01:08]} Nc4 {[%emt 0:00:27]} 29. Be2 {[%emt 0:00:41]} Nd6 {[%emt 0:00:09]} 30. Qc5 {[%emt 0:00:35]} Ne4 {[%emt 0:00:11]} 31. Qxc6 {[%emt 0:00:43]} Nxg3+ {[%emt 0:00:08]} 32. fxg3 {[%emt 0:00:04]} Qf6 {[%emt 0:00:13]} 33. Qxd5 {[%emt 0:00:59]} Rxe3 {[%emt 0:00:11]} 34. Bf3 {[%emt 0:00:23]} Rd8 {[%emt 0:00:19]} 35. Qb7 {[%emt 0:00:07]} Qe7 {[%emt 0:01:05]} 36. Qc6 {[%emt 0:01:37]} Re1+ {[%emt 0:00:36]} 37. Rxe1 {[%emt 0:00:02]} Qxe1+ {[%emt 0:00:02]} 38. Kg2 {[%emt 0:00:03]} Qd2+ {[%emt 0:00:03]} 39. Kh3 {[%emt 0:00:02]} Qxd4 {[%emt 0:00:06]} 40. a4 {[%emt 0:00:10]} Kg7 {[%emt 0:01:20]} 41. a5 {[%emt 0:00:29]} h6 {[%emt 0:08:46]} 42. a6 {[%emt 0:00:36]} g5 {[%emt 0:00:15]} 43. Bh5 {[%emt 0:00:36]} g4+ {[%emt 0:00:10]} 44. Kg2 {[%emt 0:00:47]} Qb2+ {[%emt 0:00:06]} 0-1

[Event "13th All African Rapid-ch Men 2024"]
[Site "Accra"]
[Date "2024.03.10"]
[Round "6.11"]
[White "Mahamat Hachim Bachar"]
[Black "Yacouba, Souley Moussa"]
[Result "1-0"]
[ECO "C10"]
[WhiteElo "1843"]
[BlackElo "1645"]
[Annotator "NA RC"]
[PlyCount "117"]
[EventDate "2024.03.07"]
[EventType "rapid"]
[EventCountry "GHA"]
[SourceTitle "playchess.com"]
[Source "ChessBase"]
[SourceQuality "1"]
[TimeControl "900+10"]

1. e4 {[%emt 0:00:05]} e6 {[%emt 0:00:05]} 2. d4 {[%emt 0:00:02]} d5 {[%emt 0:00:01]} 3. Nc3 {[%emt 0:00:01]} c5 {[%emt 0:00:12]} 4. e5 {[%emt 0:00:12]} c4 {[%emt 0:00:26]} 5. Nf3 {[%emt 0:00:04]} Ne7 {[%emt 0:00:45]} 6. Bg5 {[%emt 0:00:04]} a6 {[%emt 0:00:37]} 7. Be2 {[%emt 0:00:02]} Qc7 {[%emt 0:00:07]} 8. O-O {[%emt 0:00:03]} Ng6 {[%emt 0:00:52]} 9. Re1 {[%emt 0:00:02]} Be7 {[%emt 0:00:02]} 10. Qd2 {[%emt 0:00:05]} Nc6 {[%emt 0:00:22]} 11. a3 {[%emt 0:00:03]} Bd7 {[%emt 0:00:25]} 12. Bf1 {[%emt 0:00:02]} h6 {[%emt 0:00:49]} 13. Bxe7 {[%emt 0:00:04]} Ngxe7 {[%emt 0:00:05]} 14. Rad1 {[%emt 0:00:04]} Ng6 {[%emt 0:00:46]} 15. h4 {[%emt 0:00:03]} Nce7 {[%emt 0:00:58]} 16. h5 {[%emt 0:00:08]} Nf8 {[%emt 0:00:02]} 17. Qf4 {[%emt 0:00:07]} f6 {[%emt 0:01:21]} 18. Qg3 {[%emt 0:00:06]} Rh7 {[%emt 0:00:26]} 19. exf6 {[%emt 0:00:09]} Qxg3 {[%emt 0:00:08]} 20. fxg3 {[%emt 0:00:01]} gxf6 {[%emt 0:00:04]} 21. Nh4 {[%emt 0:00:12]} O-O-O {[%emt 0:00:17]} 22. Be2 {[%emt 0:00:15]} Kb8 {[%emt 0:00:47]} 23. Kh2 {[%emt 0:00:05]} Rg7 {[%emt 0:00:30]} 24. g4 {[%emt 0:00:06]} Nh7 {[%emt 0:00:25]} 25. Bf3 {[%emt 0:00:11]} Ng5 {[%emt 0:00:07]} 26. Rf1 {[%emt 0:00:14]} Kc7 {[%emt 0:02:05]} 27. Rde1 {[%emt 0:00:01]} Be8 {[%emt 0:00:45]} 28. Ne2 {[%emt 0:00:22]} Nc6 {[%emt 0:00:28]} 29. c3 {[%emt 0:00:13]} Ne7 {[%emt 0:00:32]} 30. Nf4 {[%emt 0:00:02]} Bd7 {[%emt 0:00:07]} 31. Nfg6 {[%emt 0:00:21]} Nxg6 {[%emt 0:00:50]} 32. Nxg6 {[%emt 0:00:02]} Be8 {[%emt 0:00:03]} 33. Nf4 {[%emt 0:00:12]} Bf7 {[%emt 0:00:34]} 34. Bd1 {[%emt 0:00:14]} Kd6 {[%emt 0:00:29]} 35. Re3 {[%emt 0:00:08]} a5 {[%emt 0:00:53]} 36. b3 {[%emt 0:00:04]} b5 {[%emt 0:00:20]} 37. bxc4 {[%emt 0:00:06]} bxc4 {[%emt 0:00:15]} 38. Bc2 {[%emt 0:00:00]} Rb8 {[%emt 0:00:04]} 39. Bg6 {[%emt 0:00:19]} Ne4 {[%emt 0:01:07]} 40. Bxe4 {[%emt 0:00:59]} dxe4 {[%emt 0:00:20]} 41. Kh3 {[%emt 0:00:16]} Rb3 {[%emt 0:00:23]} 42. Ra1 {[%emt 0:00:19]} f5 {[%emt 0:00:41]} 43. gxf5 {[%emt 0:00:18]} exf5 {[%emt 0:00:02]} 44. g3 {[%emt 0:00:10]} Be6 {[%emt 0:00:29]} 45. d5 {[%emt 0:00:07]} Bc8 {[%emt 0:01:34]} 46. a4 {[%emt 0:00:15]} Rgb7 {[%emt 0:00:00]} 47. Rd1 {[%emt 0:00:33]} Ra3 {[%emt 0:00:00]} 48. Rd4 {[%emt 0:00:02]} Rxa4 {[%emt 0:00:00]} 49. g4 {[%emt 0:01:00]} Rb1 {[%emt 0:00:00]} 50. gxf5 {[%emt 0:00:25]} Bxf5+ {[%emt 0:00:00]} 51. Kg3 {[%emt 0:00:10]} Raa1 {[%emt 0:00:06]} 52. Ne2 {[%emt 0:00:07]} a4 {[%emt 0:00:32]} 53. Rxc4 {[%emt 0:00:18]} Kxd5 {[%emt 0:00:25]} 54. Rd4+ {[%emt 0:00:08]} Kc5 {[%emt 0:00:10]} 55. Kf4 {[%emt 0:00:05]} a3 {[%emt 0:00:01]} 56. Kxf5 {[%emt 0:00:05]} Rf1+ {[%emt 0:00:01]} 57. Kxe4 {[%emt 0:00:05]} a2 {[%emt 0:00:02]} 58. Ra4 {[%emt 0:00:11]} Rab1 {[%emt 0:00:09]} 59. Rxa2 {[%emt 0:00:04]} 1-0